lending/lending_fUSD_20250719
["ID","MTS","AMOUNT","RATE_DAILY","PERIOD"]
[373314047,1752941447084,-460.0,0.00019178,2]
[373314048,1752941447094,-601.54,0.00019178,2]
[373314049,1752941447106,-480.0,0.00019178,2]
[373314050,1752941447115,-616.89,0.00019178,2]
[373314051,1752941447125,-480.0,0.00019178,2]
[373314052,1752941447135,-480.0,0.00019178,2]
[373314053,1752941447147,-480.0,0.00019178,2]
[373314054,1752941447156,-5117.62,0.00019178,2]
[373314055,1752941447166,-695.82,0.00019178,2]
[373314056,1752941447175,-565.21,0.00019178,2]
[373314057,1752941447185,-480.0,0.00019178,2]
[373314058,1752941447194,-480.0,0.00019178,2]
[373314059,1752941447204,-480.0,0.00019178,2]
[373314060,1752941447214,-541.70647534,0.00019178,2]
[373314061,1752941447223,-480.0,0.00019178,2]
[373314062,1752941447233,-523.24176708,0.00019178,2]
[373314063,1752941447242,-480.0,0.00019178,2]
[373314064,1752941447252,-480.0,0.00019178,2]
[373314065,1752941447262,-480.0,0.00019178,2]
[373314066,1752941447271,-480.0,0.00019178,2]
[373314067,1752941447282,-480.0,0.00019178,2]
[373314068,1752941447291,-850.9,0.00019178,2]
[373314069,1752941447301,-600.69,0.00019178,2]
[373314070,1752941447311,-480.0,0.00019178,2]
[373314071,1752941447320,-480.0,0.00019178,2]
[373314072,1752941447330,-480.0,0.00019178,2]
[373314073,1752941447340,-480.0,0.00019178,2]
[373314074,1752941447349,-480.0,0.00019178,2]
[373314075,1752941447359,-355.4853923,0.00019178,2]
[373314076,1752941447431,-214.1546077,0.00019178,2]
[373314077,1752941447441,-480.0,0.00019178,2]
[373314078,1752941447451,-480.0,0.00019178,2]
[373314079,1752941447460,-480.0,0.00019178,2]
[373314080,1752941447469,-480.0,0.00019178,2]
[373314081,1752941447478,-534.69,0.00019178,2]
[373314082,1752941447488,-480.0,0.00019178,2]
[373314083,1752941447497,-797.86,0.00019178,2]
[373314084,1752941447507,-480.0,0.00019178,2]
[373314085,1752941447516,-480.0,0.00019178,2]
[373314086,1752941447526,-690.2,0.00019178,2]
[373314087,1752941447537,-240.63,0.00019178,2]
[373314088,1752941447547,-480.0,0.00019178,2]
[373314089,1752941447557,-1306.6,0.00019178,2]
[373314090,1752941447567,-1306.6,0.00019178,2]
[373314091,1752941447576,-480.0,0.00019178,2]
[373314092,1752941447585,-480.0,0.00019178,2]
[373314093,1752941447595,-480.0,0.00019178,2]
[373314094,1752941447605,-1242.83,0.00019178,2]
[373314095,1752941447614,-480.0,0.00019178,2]
[373314096,1752941447623,-480.0,0.00019178,2]
[373314097,1752941447633,-480.0,0.00019178,2]
[373314098,1752941447642,-480.0,0.00019178,2]
[373314099,1752941447652,-15121.99856334,0.00019178,2]
[373314100,1752941447661,-2000.0,0.000192,2]
[373314101,1752941447670,-6990.85180069,0.00019234,2]
[373314102,1752941447679,-497.94871374,0.00019273,2]
[373314103,1752941447688,-500.0,0.00019273,2]
[373314104,1752941447698,-500.0,0.00019273,2]
[373314105,1752941447707,-501.75123061,0.00019273,2]
[373314106,1752941447716,-500.0,0.00019273,2]
[373314107,1752941447725,-400.03060729,0.00019273,2]
[373314108,1752941447735,-434.03750777,0.00019273,2]
[373314109,1752941447744,-500.0,0.00019273,2]
[373314110,1752941447754,-500.0,0.00019273,2]
[373314111,1752941447763,-500.0,0.00019273,2]
[373314112,1752941447773,-500.0,0.00019273,2]
[373314113,1752941447784,-500.50158795,0.00019273,2]
[373314114,1752941447794,-500.0,0.00019273,2]
[373314115,1752941447804,-500.0,0.00019273,2]
[373314116,1752941447814,-500.0,0.00019273,2]
[373314117,1752941447824,-500.99784438,0.00019273,2]
[373314118,1752941447834,-500.94064862,0.00019273,2]
[373314119,1752941447845,-500.0,0.00019273,2]
[373314120,1752941447856,-480.0,0.00019275,2]
[373314121,1752941447866,-480.0,0.00019275,2]
[373314122,1752941447878,-480.0,0.00019275,2]
[373314123,1752941447890,-351.17792742,0.00019275,2]
[373314124,1752941447900,-480.0,0.00019275,2]
[373314125,1752941447912,-480.0,0.00019275,2]
[373314126,1752941447921,-480.28767731,0.00019275,2]
[373314127,1752941447931,-480.0,0.00019275,2]
[373314128,1752941447940,-6490.07,0.00019275,2]
[373314129,1752941447949,-707.34,0.00019275,2]
[373314130,1752941447959,-480.0,0.00019275,2]
[373314131,1752941447969,-771.35,0.00019275,2]
[373314132,1752941447979,-552.66,0.00019275,2]
[373314133,1752941447988,-480.0,0.00019275,2]
[373314134,1752941447998,-3319.19,0.00019275,2]
[373314135,1752941448007,-727.4,0.00019275,2]
[373314136,1752941448017,-736.12,0.00019275,2]
[373314137,1752941448032,-2177.94,0.00019275,2]
[373314138,1752941448041,-1337.17,0.00019275,2]
[373314139,1752941448050,-1000.0,0.00019275,2]
[373314140,1752941448059,-480.0,0.00019275,2]
[373314141,1752941448070,-480.0,0.00019275,2]
[373314142,1752941448079,-945.24,0.00019275,2]
[373314143,1752941448089,-1026.59,0.00019275,2]
[373314144,1752941448100,-480.0,0.00019275,2]
[373314145,1752941448110,-480.0,0.00019275,2]
[373314146,1752941448119,-483.7,0.00019275,2]
[373314147,1752941448127,-1072.49,0.00019275,2]
[373314148,1752941448136,-1153.53,0.00019275,2]
[373314149,1752941448146,-389.42217519,0.00019277,2]
[373314150,1752941448155,-504.66,0.00019283,2]
[373314151,1752941448164,-80714.17651711,0.00019284,2]
[373314152,1752941448883,-5802.03847899,0.00019284,2]
[373314153,1752941448893,-1372.70829753,0.00019284,2]
[373314154,1752941448905,-2120.75749077,0.00019284,2]
[373314155,1752941448915,-486.55,0.00019286,2]
[373314156,1752941448925,-480.0,0.00019286,2]
[373314157,1752941448935,-480.0,0.00019286,2]
[373314158,1752941448944,-504.66,0.00019286,2]
[373314159,1752941448953,-504.66,0.00019286,2]
[373314160,1752941448963,-1306.6,0.00019286,2]
[373314161,1752941448972,-1306.6,0.00019286,2]
[373314162,1752941448982,-1306.6,0.00019286,2]
[373314163,1752941448991,-315.64000982,0.00019286,2]
[373314164,1752941449003,-36.99209636,0.00019286,2]
[373314165,1752941449014,-480.0,0.00019287,2]
[373314166,1752941449028,-151.0,0.00019287,2]
[373314167,1752941449040,-151.0,0.00019287,2]
[373314168,1752941449051,-151.0,0.00019287,2]
[373314169,1752941449060,-151.0,0.00019287,2]
[373314170,1752941449070,-79.00830488,0.00019287,2]
[373314171,1752941449106,-400.99169512,0.00019287,2]
[373314172,1752941449116,-480.0,0.00019287,2]
[373314173,1752941449126,-151.0,0.00019287,2]
[373314174,1752941449135,-151.0,0.00019287,2]
[373314175,1752941449144,-480.0,0.00019287,2]
[373314176,1752941449155,-151.0,0.00019287,2]
[373314177,1752941449164,-151.0,0.00019287,2]
[373314178,1752941449173,-480.0,0.00019287,2]
[373314179,1752941449183,-151.0,0.00019287,2]
[373314180,1752941449193,-151.0,0.00019287,2]
[373314181,1752941449202,-151.0,0.00019287,2]
[373314182,1752941449212,-151.0,0.00019287,2]
[373314183,1752941449221,-480.0,0.00019287,2]
[373314184,1752941449231,-380.0,0.00019287,2]
[373314185,1752941449240,-480.0,0.00019287,2]
[373314186,1752941449250,-70.40830488,0.00019287,2]
[373314187,1752941449263,-409.59169512,0.00019287,2]
[373314188,1752941449273,-480.0,0.00019287,2]
[373314189,1752941449283,-480.0,0.00019287,2]
[373314190,1752941449292,-480.0,0.00019287,2]
[373314191,1752941449302,-209.91310041,0.00019287,2]
[373314192,1752941449311,-255.50893182,0.00019287,2]
[373314193,1752941449323,-224.49106818,0.00019287,2]
[373314194,1752941449332,-480.0,0.00019287,2]
[373314195,1752941449342,-480.0,0.00019287,2]
[373314196,1752941449351,-380.0,0.00019287,2]
[373314197,1752941449361,-480.0,0.00019287,2]
[373314198,1752941449370,-480.0,0.00019287,2]
[373314199,1752941449383,-392.0474856,0.00019287,2]
[373314200,1752941449394,-87.9525144,0.00019287,2]
[373314201,1752941449404,-480.0,0.00019287,2]
[373314202,1752941449413,-480.0,0.00019287,2]
[373314203,1752941449424,-360.0,0.00019287,2]
[373314204,1752941449433,-480.0,0.00019287,2]
[373314205,1752941449443,-480.0,0.00019287,2]
[373314206,1752941449453,-480.0,0.00019287,2]
[373314207,1752941449462,-480.0,0.00019287,2]
[373314208,1752941449472,-398.77967707,0.00019287,2]
[373314210,1752941593004,1000.0,0.00030137,120]
[373314212,1752941686919,283.88,0.00013699,2]
[373314214,1752941783486,315.15645857,0.000211,28]
[373314233,1752942306176,1557.68,0.00016006,2]
[373314236,1752942382422,1300.0,0.00016006,2]
[373314239,1752942477483,-1000.0,0.00016999,2]
[373314240,1752942477506,-1200.0,0.00016999,2]
[373314241,1752942477528,-550.0,0.00016999,2]
[373314242,1752942477549,-500.0,0.00016999,2]
[373314243,1752942477571,-500.0,0.00016999,2]
[373314244,1752942477593,-500.0,0.00016999,2]
[373314245,1752942477614,-500.0,0.00016999,2]
[373314246,1752942477637,-323.77514366,0.00016999,2]
[373314247,1752942477660,-500.0,0.00016999,2]
[373314248,1752942477683,-499.99999999,0.00016999,2]
[373314249,1752942477712,-185732.22485635,0.00017,2]
[373314250,1752942497025,-300.0,0.00016998,2]
[373314251,1752942497047,-14700.0,0.00017,2]
[373314252,1752942498730,-15000.0,0.00017,2]
[373314253,1752942499238,-15000.0,0.00017,2]
[373314254,1752942499775,-15000.0,0.00017,2]
[373314255,1752942500199,-18149.0,0.00017,2]
[373314256,1752942500541,-15000.0,0.00017,2]
[373314257,1752942500847,-15000.0,0.00017,2]
[373314258,1752942501374,-15000.0,0.00017,2]
[373314259,1752942501902,-15000.0,0.00017,2]
[373314260,1752942502370,-15000.0,0.00017,2]
[373314261,1752942502869,-15000.0,0.00017,2]
[373314262,1752942503382,-15000.0,0.00017,2]
[373314263,1752942503905,-15000.0,0.00017,2]
[373314264,1752942504207,-15000.0,0.00017,2]
[373314265,1752942505035,-15000.0,0.00017,2]
[373314266,1752942505259,-15000.0,0.00017,2]
[373314267,1752942505766,-15000.0,0.00017,2]
[373314268,1752942506368,-15000.0,0.00017,2]
[373314269,1752942506886,-15000.0,0.00017,2]
[373314270,1752942507391,-15000.0,0.00017,2]
[373314271,1752942508399,-15000.0,0.00017,2]
[373314272,1752942508550,-15000.0,0.00017,2]
[373314273,1752942508917,-15000.0,0.00017,2]
[373314274,1752942509545,-15000.0,0.00017,2]
[373314275,1752942510104,-15000.0,0.00017,2]
[373314276,1752942510638,-15000.0,0.00017,2]
[373314277,1752942511187,-15000.0,0.00017,2]
[373314278,1752942511635,-15000.0,0.00017,2]
[373314279,1752942512182,-15000.0,0.00017,2]
[373314280,1752942512695,-15000.0,0.00017,2]
[373314281,1752942514757,-15000.0,0.00017,2]
[373314282,1752942515178,-15000.0,0.00017,2]
[373314283,1752942515876,-12790.66750609,0.00017,2]
[373314289,1752942598949,512.0,0.00016326,2]
[373314290,1752942604839,-150.0,0.00017433,2]
[373314291,1752942604861,-189.0,0.000175,2]
[373314292,1752942604882,-167.22,0.00017635,2]
[373314293,1752942604906,-180.53,0.00017746,2]
[373314294,1752942604929,-512.0,0.00017944,4]
[373314295,1752942604950,-250.0,0.0001795,2]
[373314296,1752942604973,-1828.27796569,0.00018002,2]
[373314297,1752942604997,-1200.0,0.00018015,2]
[373314298,1752942605019,-300.0,0.00018016,2]
[373314299,1752942605041,-300.0,0.00018016,2]
[373314300,1752942605062,-7518.22743232,0.00018017,2]
[373314301,1752942605084,-1000.0,0.00018066,2]
[373314302,1752942605104,-263.12,0.00018186,2]
[373314303,1752942605127,-350.0,0.00018244,2]
[373314304,1752942605148,-151.0,0.00018245,2]
[373314305,1752942605171,-151.0,0.00018245,2]
[373314306,1752942605192,-151.0,0.00018245,2]
[373314307,1752942605215,-151.0,0.00018245,2]
[373314308,1752942605237,-151.0,0.00018245,2]
[373314309,1752942605260,-36.62460199,0.00018245,2]
[373314310,1752942606000,-114.37539801,0.00018245,2]
[373314311,1752942606023,-500.0,0.00018245,2]
[373314312,1752942606046,-500.0,0.00018245,2]
[373314313,1752942606069,-151.0,0.00018245,2]
[373314314,1752942606093,-500.0,0.00018245,2]
[373314315,1752942606117,-151.0,0.00018245,2]
[373314316,1752942606139,-500.0,0.00018245,2]
[373314317,1752942606161,-151.0,0.00018245,2]
[373314318,1752942606184,-500.0,0.00018245,2]
[373314319,1752942606207,-151.0,0.00018245,2]
[373314320,1752942606229,-415.30296997,0.00018245,2]
[373314321,1752942606251,-11366.32163202,0.00018256,2]
[373314322,1752942606578,-12533.67836798,0.00018256,2]
[373314323,1752942606601,-2466.32163202,0.00018267,2]
[373314324,1752942607128,-4676.53436798,0.00018267,2]
[373314325,1752942607148,-160.0,0.00018267,2]
[373314326,1752942607174,-600.0,0.00018267,2]
[373314327,1752942607196,-346.92554585,0.00018267,2]
[373314328,1752942607218,-207.4,0.00018267,2]
[373314329,1752942607239,-1083.0,0.00018335,2]
[373314330,1752942607260,-200.0,0.00018406,2]
[373314331,1752942607282,-308.38,0.0001841,2]
[373314332,1752942607304,-207.25357072,0.00018649,2]
[373314333,1752942607324,-579.59986079,0.00018663,2]
[373314334,1752942607346,-300.0,0.00018698,2]
[373314335,1752942607370,-250.0,0.00018699,2]
[373314336,1752942607393,-150.0,0.00018765,2]
[373314337,1752942607415,-186.0,0.0001878,2]
[373314338,1752942607439,-150.0,0.00018794,2]
[373314339,1752942607461,-150.0,0.00018808,2]
[373314340,1752942607482,-5444.90665466,0.00018815,2]
[373314341,1752942608350,-10741.46,0.00018322,2]
[373314342,1752942608375,-1962.23501734,0.00018815,2]
[373314343,1752942608397,-600.0,0.00018815,2]
[373314344,1752942608418,-1519.86235408,0.00018835,2]
[373314345,1752942608441,-176.44262858,0.00018848,2]
[373314346,1752942609572,-5711.55737142,0.00018848,2]
[373314347,1752942609595,-294.60779394,0.00018954,2]
[373314348,1752942609617,-3284.21,0.00018959,14]
[373314349,1752942609639,-154.0,0.0001899,2]
[373314350,1752942609661,-154.0,0.0001899,2]
[373314351,1752942609683,-154.0,0.0001899,2]
[373314352,1752942609705,-154.0,0.0001899,2]
[373314353,1752942609727,-154.0,0.0001899,2]
[373314354,1752942609751,-262.42453709,0.0001899,2]
[373314355,1752942609774,-300.0,0.00018999,2]
[373314356,1752942609796,-1000.0,0.00019,2]
[373314357,1752942609817,-3377.20029755,0.00019,14]
[373314358,1752942611812,-1622.79970245,0.00019,14]
[373314359,1752942611834,-5000.0,0.00019,2]
[373314360,1752942611855,-4000.0,0.00019,14]
[373314361,1752942611876,-4000.0,0.00019,14]
[373314362,1752942611898,-377.20029755,0.00019,2]
[373314368,1752942631776,250.0,0.00015,2]
[373314373,1752942631845,-500.0,0.000169,2]
[373314374,1752942631857,-341.07312726,0.00019,2]
[373314375,1752942631900,-781.72657519,0.00019,2]
[373314376,1752942631911,-776.0,0.00019032,2]
[373314377,1752942631921,-300.0,0.0001904,2]
[373314378,1752942631935,-300.0,0.0001904,2]
[373314379,1752942631945,-3508.81672381,0.00019042,2]
[373314380,1752942631956,-150.0,0.00019044,2]
[373314381,1752942631966,-6901.8463,0.00019067,2]
[373314382,1752942631976,-2958.04208817,0.00019067,2]
[373314383,1752942631988,-1028.52581183,0.00019067,2]
[373314384,1752942631998,-158.85784279,0.00019073,2]
[373314385,1752942632008,-476.80070012,0.00019075,2]
[373314386,1752942632018,-165.88013773,0.00019077,2]
[373314387,1752942632031,-500.11986227,0.00019077,2]
[373314388,1752942632041,-70.36859107,0.00019078,2]
[373314389,1752942632053,-87.28110146,0.00019078,2]
[373314390,1752942632066,-508.46909053,0.00019078,2]
[373314391,1752942632088,-69.24757451,0.00019078,2]
[373314392,1752942632098,-181.8314214,0.00019078,2]
[373314393,1752942632108,-1048.7291,0.00019078,2]
[373314394,1752942632118,-1000.0,0.00019078,2]
[373314395,1752942632129,-10000.0,0.00019078,2]
[373314396,1752942632139,-1000.0,0.00019078,2]
[373314397,1752942632149,-261.7062,0.00019078,2]
[373314398,1752942632159,-2500.0,0.00019078,2]
[373314399,1752942632170,-1535.83092,0.0001909,2]
[373314400,1752942632180,-200.0,0.00019133,2]
[373314401,1752942632191,-579.59986079,0.00019148,2]
[373314402,1752942632200,-164.068,0.00019161,2]
[373314403,1752942632211,-2988.175,0.00019161,2]
[373314404,1752942632221,-509.6,0.00019168,2]
[373314405,1752942632231,-839.16344753,0.0001917,2]
[373314406,1752942632240,-210.82967408,0.0001917,2]
[373314407,1752942632250,-160.0,0.0001917,2]
[373314408,1752942632260,-666.0,0.00019177,2]
[373314409,1752942632270,-300.0,0.00019177,2]
[373314410,1752942632280,-185.51664856,0.00019177,2]
[373314411,1752942632289,-480.0,0.00019178,2]
[373314412,1752942632299,-955.934109,0.00019178,2]
[373314413,1752942632315,-346.5193015,0.00019178,2]
[373314414,1752942632328,-480.0,0.00019178,2]
[373314415,1752942632352,-480.0,0.00019178,2]
[373314416,1752942632363,-480.0,0.00019178,2]
[373314417,1752942632373,-480.0,0.00019178,2]
[373314418,1752942632383,-480.0,0.00019178,2]
[373314420,1752942632392,-480.0,0.00019178,2]
[373314422,1752942632403,-360.0,0.00019178,2]
[373314424,1752942632412,-480.0,0.00019178,2]
[373314426,1752942632422,-360.0,0.00019178,2]
[373314427,1752942632431,-480.0,0.00019178,2]
[373314428,1752942632443,-480.0,0.00019178,2]
[373314429,1752942632452,-480.0,0.00019178,2]
[373314430,1752942632462,-482.68533715,0.00019178,2]
[373314431,1752942632472,-397.22,0.00019178,2]
[373314432,1752942632482,-480.0,0.00019178,2]
[373314433,1752942632492,-358.25204546,0.00019178,2]
[373314434,1752942632511,-480.0,0.00019178,2]
[373314435,1752942632522,-480.0,0.00019178,2]
[373314436,1752942632533,-480.0,0.00019178,2]
[373314437,1752942632543,-480.0,0.00019178,2]
[373314438,1752942632553,-480.0,0.00019178,2]
[373314439,1752942632566,-471.33547063,0.00019178,2]
[373314440,1752942632575,-480.0,0.00019178,2]
[373314441,1752942632585,-480.0,0.00019178,2]
[373314442,1752942632595,-480.0,0.00019178,2]
[373314443,1752942632605,-460.0,0.00019178,2]
[373314444,1752942632614,-201.14264581,0.00019178,2]
[373314445,1752942632624,-480.0,0.00019178,2]
[373314446,1752942632634,-460.0,0.00019178,2]
[373314447,1752942632643,-480.0,0.00019178,2]
[373314448,1752942632653,-480.0,0.00019178,2]
[373314449,1752942632664,-460.0,0.00019178,2]
[373314450,1752942632674,-331.17077064,0.00019178,2]
[373314451,1752942632684,-480.0,0.00019178,2]
[373314452,1752942632694,-460.0,0.00019178,2]
[373314453,1752942632704,-460.0,0.00019178,2]
[373314454,1752942632714,-460.0,0.00019178,2]
[373314455,1752942632724,-460.0,0.00019178,2]
[373314456,1752942632734,-480.0,0.00019178,2]
[373314457,1752942632744,-480.0,0.00019178,2]
[373314458,1752942632754,-460.0,0.00019178,2]
[373314459,1752942632764,-460.0,0.00019178,2]
[373314460,1752942632774,-480.0,0.00019178,2]
[373314461,1752942632784,-480.0,0.00019178,2]
[373314462,1752942632793,-480.0,0.00019178,2]
[373314463,1752942632803,-1459.65329,0.00019178,2]
[373314464,1752942632815,-1472.732795,0.00019178,2]
[373314465,1752942632824,-460.0,0.00019178,2]
[373314466,1752942632835,-480.0,0.00019178,2]
[373314467,1752942632844,-1557.145121,0.00019178,2]
[373314469,1752942632854,-480.0,0.00019178,2]
[373314470,1752942632864,-480.0,0.00019178,2]
[373314471,1752942632874,-480.0,0.00019178,2]
[373314472,1752942632883,-480.0,0.00019178,2]
[373314473,1752942632893,-480.0,0.00019178,2]
[373314474,1752942632903,-480.0,0.00019178,2]
[373314475,1752942632912,-480.0,0.00019178,2]
[373314476,1752942632922,-480.0,0.00019178,2]
[373314477,1752942632931,-480.0,0.00019178,2]
[373314478,1752942632941,-505.17,0.00019178,2]
[373314479,1752942632950,-480.0,0.00019178,2]
[373314480,1752942632960,-480.0,0.00019178,2]
[373314481,1752942632970,-480.0,0.00019178,2]
[373314482,1752942632980,-480.0,0.00019178,2]
[373314483,1752942632990,-430.91,0.00019178,2]
[373314484,1752942633000,-480.0,0.00019178,2]
[373314485,1752942633010,-480.0,0.00019178,2]
[373314486,1752942633020,-480.0,0.00019178,2]
[373314487,1752942633030,-480.0,0.00019178,2]
[373314488,1752942633043,-480.0,0.00019178,2]
[373314489,1752942633054,-580.11,0.00019178,2]
[373314490,1752942633067,-480.0,0.00019178,2]
[373314491,1752942633077,-480.0,0.00019178,2]
[373314492,1752942633088,-390.0539727,0.00019178,2]
[373314493,1752942633099,-480.0,0.00019178,2]
[373314494,1752942633110,-480.0,0.00019178,2]
[373314495,1752942633120,-480.0,0.00019178,2]
[373314496,1752942633131,-480.0,0.00019178,2]
[373314497,1752942633142,-480.0,0.00019178,2]
[373314498,1752942633152,-480.0,0.00019178,2]
[373314499,1752942633163,-768.28,0.00019178,2]
[373314500,1752942633173,-480.0,0.00019178,2]
[373314501,1752942633183,-480.0,0.00019178,2]
[373314502,1752942633194,-480.0,0.00019178,2]
[373314503,1752942633205,-480.0,0.00019178,2]
[373314504,1752942633216,-480.0,0.00019178,2]
[373314505,1752942633227,-480.0,0.00019178,2]
[373314506,1752942633238,-480.0,0.00019178,2]
[373314507,1752942633249,-480.0,0.00019178,2]
[373314508,1752942633260,-480.0,0.00019178,2]
[373314509,1752942633270,-480.0,0.00019178,2]
[373314510,1752942633281,-480.0,0.00019178,2]
[373314511,1752942633291,-480.0,0.00019178,2]
[373314512,1752942633302,-480.0,0.00019178,2]
[373314513,1752942633317,-480.0,0.00019178,2]
[373314514,1752942633327,-480.0,0.00019178,2]
[373314515,1752942633338,-480.0,0.00019178,2]
[373314516,1752942633350,-480.0,0.00019178,2]
[373314517,1752942633365,-480.0,0.00019178,2]
[373314518,1752942633376,-480.0,0.00019178,2]
[373314519,1752942633386,-480.0,0.00019178,2]
[373314520,1752942633397,-480.0,0.00019178,2]
[373314521,1752942633410,-480.0,0.00019178,2]
[373314522,1752942633421,-480.0,0.00019178,2]
[373314523,1752942633432,-460.0,0.00019178,2]
[373314524,1752942633443,-531.85,0.00019178,2]
[373314525,1752942633454,-480.0,0.00019178,2]
[373314526,1752942633465,-480.0,0.00019178,2]
[373314527,1752942633475,-380.0,0.00019178,2]
[373314528,1752942633486,-239.95,0.00019178,2]
[373314529,1752942633497,-480.0,0.00019178,2]
[373314530,1752942633508,-480.0,0.00019178,2]
[373314531,1752942633518,-460.0,0.00019178,2]
[373314532,1752942633529,-460.0,0.00019178,2]
[373314533,1752942633540,-480.0,0.00019178,2]
[373314534,1752942633550,-480.0,0.00019178,2]
[373314535,1752942633563,-252.68963585,0.00019178,2]
[373314536,1752942633574,-480.0,0.00019178,2]
[373314537,1752942633584,-480.0,0.00019178,2]
[373314538,1752942633598,-747.44,0.00019178,2]
[373314539,1752942633609,-597.12,0.00019178,2]
[373314540,1752942633619,-480.0,0.00019178,2]
[373314541,1752942633629,-460.0,0.00019178,2]
[373314542,1752942633639,-480.0,0.00019178,2]
[373314543,1752942633649,-480.0,0.00019178,2]
[373314544,1752942633659,-493.7812355,0.00019178,2]
[373314545,1752942633670,-300.0,0.00019178,2]
[373314546,1752942633681,-480.0,0.00019178,2]
[373314547,1752942633691,-360.0,0.00019178,2]
[373314548,1752942633702,-484.17,0.00019178,2]
[373314549,1752942633713,-352.96,0.00019178,2]
[373314550,1752942633723,-480.0,0.00019178,2]
[373314551,1752942634106,-480.0,0.00019178,2]
[373314552,1752942634117,-410.88956912,0.00019178,2]
[373314553,1752942634127,-480.0,0.00019178,2]
[373314554,1752942634137,-480.0,0.00019178,2]
[373314555,1752942634147,-450.56631664,0.00019178,2]
[373314556,1752942634158,-480.0,0.00019178,2]
[373314557,1752942634168,-480.0,0.00019178,2]
[373314558,1752942634178,-480.0,0.00019178,2]
[373314559,1752942634188,-480.0,0.00019178,2]
[373314560,1752942634198,-480.0,0.00019178,2]
[373314561,1752942634209,-380.0,0.00019178,2]
[373314562,1752942634219,-480.0,0.00019178,2]
[373314563,1752942634228,-380.0,0.00019178,2]
[373314564,1752942634238,-155.16,0.00019178,2]
[373314565,1752942634247,-480.0,0.00019178,2]
[373314566,1752942634256,-480.0,0.00019178,2]
[373314567,1752942634266,-480.0,0.00019178,2]
[373314568,1752942634275,-480.0,0.00019178,2]
[373314569,1752942634284,-480.0,0.00019178,2]
[373314570,1752942634294,-480.0,0.00019178,2]
[373314571,1752942634304,-480.0,0.00019178,2]
[373314572,1752942634316,-480.0,0.00019178,2]
[373314573,1752942634326,-480.0,0.00019178,2]
[373314574,1752942634335,-480.0,0.00019178,2]
[373314575,1752942634346,-508.19,0.00019178,2]
[373314576,1752942634356,-480.0,0.00019178,2]
[373314577,1752942634369,-480.0,0.00019178,2]
[373314578,1752942634379,-480.0,0.00019178,2]
[373314579,1752942634388,-725.52,0.00019178,2]
[373314580,1752942634399,-480.0,0.00019178,2]
[373314581,1752942634409,-480.0,0.00019178,2]
[373314582,1752942634420,-480.0,0.00019178,2]
[373314583,1752942634429,-480.0,0.00019178,2]
[373314584,1752942634440,-380.0,0.00019178,2]
[373314585,1752942634450,-480.0,0.00019178,2]
[373314586,1752942634460,-480.0,0.00019178,2]
[373314587,1752942634469,-480.0,0.00019178,2]
[373314588,1752942634479,-528.6,0.00019178,2]
[373314589,1752942634489,-480.0,0.00019178,2]
[373314590,1752942634499,-480.0,0.00019178,2]